[Event "Titled Tuesday Blitz April 05 Late 2022"]
[White "Arabidze, Meri"]
[Black "Papasimakopoulos, Alexandros"]
[WhiteFideId "13604040"]
[BlackFideId "4244125"]
[WhiteElo "2335"]
[BlackElo "2340"]
[Result "1-0"]
[Round "07"]
[TimeControl "180+1"]
[Date "2022.04.05"]
[WhiteClock "0:00:11"]
[BlackClock "0:00:16"]

1. Nf3 {[%clk 0:03:00]}  f5 {[%clk 0:02:53]} 2. d3 {[%clk 0:02:59]}  d6 {[%clk 0:02:52]} 3. e4 {[%clk 0:02:59]}  g6 {[%clk 0:02:52]} 4. exf5 {[%clk 0:02:58]}  Bxf5 {[%clk 0:02:53]} 5. d4 {[%clk 0:02:57]}  Bg7 {[%clk 0:02:53]} 6. Bd3 {[%clk 0:02:55]}  Qd7 {[%clk 0:02:54]} 7. O-O {[%clk 0:02:55]}  Nf6 {[%clk 0:02:52]} 8. Re1 {[%clk 0:02:52]}  Nc6 {[%clk 0:02:52]} 9. c3 {[%clk 0:02:52]}  O-O-O {[%clk 0:02:44]} 10. Bb5 {[%clk 0:02:47]}  e5 {[%clk 0:02:38]} 11. d5 {[%clk 0:02:44]}  Nxd5 {[%clk 0:02:28]} 12. Qxd5 {[%clk 0:02:43]}  Be6 {[%clk 0:02:29]} 13. Qd1 {[%clk 0:02:37]}  a6 {[%clk 0:02:28]} 14. Ba4 {[%clk 0:02:36]}  Rdf8 {[%clk 0:02:21]} 15. Be3 {[%clk 0:02:30]}  d5 {[%clk 0:02:17]} 16. Bc5 {[%clk 0:02:26]}  Rf5 {[%clk 0:02:09]} 17. Nbd2 {[%clk 0:02:10]}  b6 {[%clk 0:02:09]} 18. Ba3 {[%clk 0:02:03]}  b5 {[%clk 0:02:02]} 19. Bc2 {[%clk 0:02:03]}  e4 {[%clk 0:02:03]} 20. Nxe4 {[%clk 0:01:43]}  dxe4 {[%clk 0:02:03]} 21. Bxe4 {[%clk 0:01:44]}  Rf4 {[%clk 0:01:52]} 22. Ng5 {[%clk 0:01:42]}  Bg4 {[%clk 0:01:43]} 23. f3 {[%clk 0:01:34]}  Bf5 {[%clk 0:01:42]} 24. Qc1 {[%clk 0:01:19]}  Rh4 {[%clk 0:01:19]} 25. Qe3 {[%clk 0:01:03]}  b4 {[%clk 0:00:34]} 26. Rad1 {[%clk 0:00:58]}  Bd4 {[%clk 0:00:33]} 27. cxd4 {[%clk 0:00:53]}  bxa3 {[%clk 0:00:33]} 28. Qxa3 {[%clk 0:00:50]}  Bxe4 {[%clk 0:00:29]} 29. Qxa6+ {[%clk 0:00:47]}  Kb8 {[%clk 0:00:28]} 30. Rxe4 {[%clk 0:00:43]}  Rxe4 {[%clk 0:00:24]} 31. Nxe4 {[%clk 0:00:44]}  Nxd4 {[%clk 0:00:15]} 32. Rd3 {[%clk 0:00:41]}  Re8 {[%clk 0:00:07]} 33. Qc4 {[%clk 0:00:24]}  Rd8 {[%clk 0:00:05]} 34. Nc5 {[%clk 0:00:20]}  Qd5 {[%clk 0:00:05]} 35. Qxd5 {[%clk 0:00:18]}  Rxd5 {[%clk 0:00:05]} 36. b4 {[%clk 0:00:14]}  Ne2+ {[%clk 0:00:01]} 37. Kf2 {[%clk 0:00:14]}  Rxd3 {[%clk 0:00:02]} 38. Nxd3 {[%clk 0:00:14]}  Nc3 {[%clk 0:00:03]} 39. a3 {[%clk 0:00:14]}  Kc8 {[%clk 0:00:03]} 40. g4 {[%clk 0:00:14]}  Kd7 {[%clk 0:00:03]} 41. h4 {[%clk 0:00:14]}  Ke6 {[%clk 0:00:03]} 42. Ke3 {[%clk 0:00:14]}  Kd5 {[%clk 0:00:04]} 43. f4 {[%clk 0:00:11]}  Nd1+ {[%clk 0:00:03]} 44. Kd2 {[%clk 0:00:11]}  Kd4 {[%clk 0:00:03]} 45. Kxd1 {[%clk 0:00:11]}  Kxd3 {[%clk 0:00:04]} 46. f5 {[%clk 0:00:12]}  gxf5 {[%clk 0:00:03]} 47. gxf5 {[%clk 0:00:12]}  Kc4 {[%clk 0:00:03]} 48. f6 {[%clk 0:00:13]}  Kb3 {[%clk 0:00:04]} 49. f7 {[%clk 0:00:13]}  Kxa3 {[%clk 0:00:05]} 50. f8=Q {[%clk 0:00:14]}  c5 {[%clk 0:00:06]} 51. Qxc5 {[%clk 0:00:14]}  h5 {[%clk 0:00:07]} 52. Qxh5 {[%clk 0:00:13]}  Ka4 {[%clk 0:00:07]} 53. Qg5 {[%clk 0:00:13]}  Kb3 {[%clk 0:00:08]} 54. h5 {[%clk 0:00:14]}  Ka4 {[%clk 0:00:08]} 55. h6 {[%clk 0:00:14]}  Kb3 {[%clk 0:00:09]} 56. h7 {[%clk 0:00:14]}  Kc4 {[%clk 0:00:10]} 57. h8=Q {[%clk 0:00:14]}  Kb3 {[%clk 0:00:11]} 58. b5 {[%clk 0:00:14]}  Ka4 {[%clk 0:00:12]} 59. b6 {[%clk 0:00:13]}  Kb3 {[%clk 0:00:13]} 60. Qf4 {[%clk 0:00:13]}  Ka2 {[%clk 0:00:14]} 61. Qa8+ {[%clk 0:00:12]}  Kb3 {[%clk 0:00:15]} 62. Qaa4+ {[%clk 0:00:12]}  Kc3 {[%clk 0:00:16]} 63. Qfd4# {[%clk 0:00:11]} 1-0


[Site "https://www.chess.com"]

[Event "Titled Tuesday Blitz April 05 Late 2022"]
[White "Araujo Filho, Luiz Antonio Coel"]
[Black "Hoffmann, Asa"]
[WhiteFideId "2130661"]
[BlackFideId "2001470"]
[WhiteElo "2271"]
[BlackElo "2117"]
[Result "0-1"]
[Round "07"]
[TimeControl "180+1"]
[Date "2022.04.06"]
[WhiteClock "0:02:16"]
[BlackClock "0:02:27"]

1. d4 {[%clk 0:03:00]}  Nf6 {[%clk 0:02:56]} 2. Nf3 {[%clk 0:03:00]}  d6 {[%clk 0:02:56]} 3. e3 {[%clk 0:03:00]}  Bf5 {[%clk 0:02:54]} 4. b3 {[%clk 0:03:01]}  Nbd7 {[%clk 0:02:53]} 5. Bb2 {[%clk 0:03:01]}  e6 {[%clk 0:02:51]} 6. Be2 {[%clk 0:03:02]}  Be7 {[%clk 0:02:50]} 7. O-O {[%clk 0:03:02]}  h6 {[%clk 0:02:50]} 8. Nbd2 {[%clk 0:03:03]}  c6 {[%clk 0:02:50]} 9. c4 {[%clk 0:03:03]}  a5 {[%clk 0:02:48]} 10. Rc1 {[%clk 0:03:02]}  Qb6 {[%clk 0:02:45]} 11. a3 {[%clk 0:02:59]}  O-O {[%clk 0:02:42]} 12. Nb1 {[%clk 0:02:53]}  c5 {[%clk 0:02:39]} 13. Nc3 {[%clk 0:02:50]}  Rfd8 {[%clk 0:02:37]} 14. d5 {[%clk 0:02:47]}  e5 {[%clk 0:02:35]} 15. Ne1 {[%clk 0:02:31]}  e4 {[%clk 0:02:32]} 16. Qc2 {[%clk 0:02:25]}  Ne5 {[%clk 0:02:31]} 17. f4 {[%clk 0:02:17]}  exf3 {[%clk 0:02:27]} 18. gxf3 {[%clk 0:02:16]}  Bxc2 {[%clk 0:02:27]} 0-1


[Site "https://www.chess.com"]

[Event "Titled Tuesday Blitz April 05 Late 2022"]
[White "Baches Garcia, Guillermo"]
[Black "Aldokhin, Ivan"]
[WhiteFideId "2209764"]
[BlackFideId "24115720"]
[WhiteElo "2509"]
[BlackElo "2231"]
[Result "0-1"]
[Round "07"]
[TimeControl "180+1"]
[Date "2022.04.06"]
[WhiteClock "0:00:15"]
[BlackClock "0:00:29"]

1. e4 {[%clk 0:03:00]}  c5 {[%clk 0:03:00]} 2. Nf3 {[%clk 0:03:00]}  e6 {[%clk 0:03:00]} 3. c4 {[%clk 0:02:59]}  Nc6 {[%clk 0:02:58]} 4. d4 {[%clk 0:02:59]}  cxd4 {[%clk 0:02:57]} 5. Nxd4 {[%clk 0:03:00]}  Nf6 {[%clk 0:02:58]} 6. Nc3 {[%clk 0:03:00]}  Bb4 {[%clk 0:02:58]} 7. Nxc6 {[%clk 0:03:00]}  bxc6 {[%clk 0:02:56]} 8. Bd3 {[%clk 0:03:01]}  e5 {[%clk 0:02:48]} 9. O-O {[%clk 0:03:01]}  O-O {[%clk 0:02:37]} 10. Qe2 {[%clk 0:03:01]}  d6 {[%clk 0:02:31]} 11. Na4 {[%clk 0:03:00]}  Nd7 {[%clk 0:02:22]} 12. Be3 {[%clk 0:02:52]}  Qa5 {[%clk 0:02:05]} 13. b3 {[%clk 0:02:45]}  Nc5 {[%clk 0:02:05]} 14. Nxc5 {[%clk 0:02:38]}  Bxc5 {[%clk 0:02:05]} 15. Rfd1 {[%clk 0:02:31]}  Be6 {[%clk 0:01:56]} 16. Rd2 {[%clk 0:02:26]}  Qb6 {[%clk 0:01:42]} 17. Re1 {[%clk 0:02:13]}  a5 {[%clk 0:01:41]} 18. h3 {[%clk 0:02:11]}  a4 {[%clk 0:01:40]} 19. Bc2 {[%clk 0:02:02]}  axb3 {[%clk 0:01:32]} 20. axb3 {[%clk 0:02:03]}  Ra2 {[%clk 0:01:25]} 21. Bxc5 {[%clk 0:01:44]}  dxc5 {[%clk 0:01:23]} 22. Bd1 {[%clk 0:01:30]}  Rxd2 {[%clk 0:01:19]} 23. Qxd2 {[%clk 0:01:30]}  Rd8 {[%clk 0:01:20]} 24. Qg5 {[%clk 0:01:28]}  f6 {[%clk 0:01:20]} 25. Qe3 {[%clk 0:01:25]}  Rd4 {[%clk 0:01:18]} 26. Bc2 {[%clk 0:01:21]}  Qd8 {[%clk 0:01:09]} 27. Ra1 {[%clk 0:01:13]}  h6 {[%clk 0:00:54]} 28. Kh2 {[%clk 0:01:09]}  Qd6 {[%clk 0:00:54]} 29. Ra7 {[%clk 0:00:57]}  Rd2 {[%clk 0:00:42]} 30. Qg3 {[%clk 0:00:45]}  Bf7 {[%clk 0:00:41]} 31. Bb1 {[%clk 0:00:31]}  Qd4 {[%clk 0:00:39]} 32. Ra2 {[%clk 0:00:15]}  Rxa2 {[%clk 0:00:32]} 33. Bxa2 {[%clk 0:00:16]}  Qb2 {[%clk 0:00:32]} 34. Qg4 {[%clk 0:00:16]}  Qxa2 {[%clk 0:00:31]} 35. Qc8+ {[%clk 0:00:15]}  Kh7 {[%clk 0:00:31]} 36. Qxc6 {[%clk 0:00:16]}  Qxb3 {[%clk 0:00:28]} 37. Qxc5 {[%clk 0:00:15]}  Qxc4 {[%clk 0:00:29]} 0-1


[Site "https://www.chess.com"]

[Event "Titled Tuesday Blitz April 05 Late 2022"]
[White "Bazeev, German"]
[Black "Mkrtchyan, Mariam"]
[WhiteFideId "24119350"]
[BlackFideId "13310828"]
[WhiteElo "2493"]
[BlackElo "1984"]
[Result "0-1"]
[Round "07"]
[TimeControl "180+1"]
[Date "2022.04.05"]
[WhiteClock "0:01:12"]
[BlackClock "0:00:55"]

1. d4 {[%clk 0:02:46]}  d5 {[%clk 0:02:59]} 2. Nf3 {[%clk 0:02:46]}  Nf6 {[%clk 0:02:57]} 3. c4 {[%clk 0:02:47]}  c6 {[%clk 0:02:55]} 4. Qc2 {[%clk 0:02:46]}  g6 {[%clk 0:02:49]} 5. Bf4 {[%clk 0:02:45]}  Bf5 {[%clk 0:02:44]} 6. Qb3 {[%clk 0:02:37]}  Qb6 {[%clk 0:02:44]} 7. e3 {[%clk 0:02:38]}  Bg7 {[%clk 0:02:40]} 8. Nc3 {[%clk 0:02:38]}  O-O {[%clk 0:02:37]} 9. h3 {[%clk 0:02:38]}  Na6 {[%clk 0:02:29]} 10. c5 {[%clk 0:02:30]}  Qxb3 {[%clk 0:02:23]} 11. axb3 {[%clk 0:02:31]}  Nb4 {[%clk 0:02:23]} 12. Kd2 {[%clk 0:02:27]}  b6 {[%clk 0:02:12]} 13. Be2 {[%clk 0:01:56]}  bxc5 {[%clk 0:02:06]} 14. dxc5 {[%clk 0:01:57]}  Nd7 {[%clk 0:01:59]} 15. Ra5 {[%clk 0:01:53]}  e5 {[%clk 0:01:58]} 16. Bh2 {[%clk 0:01:52]}  d4 {[%clk 0:01:55]} 17. Na4 {[%clk 0:01:38]}  dxe3+ {[%clk 0:01:35]} 18. fxe3 {[%clk 0:01:32]}  Rfd8 {[%clk 0:01:34]} 19. Ke1 {[%clk 0:01:25]}  Nc2+ {[%clk 0:01:21]} 20. Kf2 {[%clk 0:01:23]}  Bh6 {[%clk 0:01:18]} 21. g4 {[%clk 0:01:22]}  Bxe3+ {[%clk 0:01:09]} 22. Kg2 {[%clk 0:01:23]}  Be4 {[%clk 0:01:09]} 23. Nc3 {[%clk 0:01:17]}  Bxf3+ {[%clk 0:01:03]} 24. Bxf3 {[%clk 0:01:18]}  Nxc5 {[%clk 0:00:55]} 25. Re1 {[%clk 0:01:12]} 0-1


[Site "https://www.chess.com"]

[Event "Titled Tuesday Blitz April 05 Late 2022"]
[White "Bilan, Danila"]
[Black "Lashkin, Jegor"]
[WhiteFideId "24161918"]
[BlackFideId "13907808"]
[WhiteElo "2164"]
[BlackElo "2368"]
[Result "0-1"]
[Round "07"]
[TimeControl "180+1"]
[Date "2022.04.05"]
[WhiteClock "0:00:01"]
[BlackClock "0:00:11"]

1. d4 {[%clk 0:03:00]}  Nf6 {[%clk 0:02:58]} 2. Nf3 {[%clk 0:03:00]}  d5 {[%clk 0:02:58]} 3. c4 {[%clk 0:03:00]}  e6 {[%clk 0:02:57]} 4. Nc3 {[%clk 0:02:59]}  Bb4 {[%clk 0:02:57]} 5. Qb3 {[%clk 0:02:53]}  c5 {[%clk 0:02:55]} 6. a3 {[%clk 0:02:52]}  Bxc3+ {[%clk 0:02:35]} 7. Qxc3 {[%clk 0:02:46]}  cxd4 {[%clk 0:02:35]} 8. Nxd4 {[%clk 0:02:41]}  O-O {[%clk 0:02:35]} 9. Bg5 {[%clk 0:02:23]}  e5 {[%clk 0:02:27]} 10. Nf3 {[%clk 0:02:06]}  d4 {[%clk 0:02:26]} 11. Qc2 {[%clk 0:02:01]}  Nc6 {[%clk 0:02:16]} 12. e3 {[%clk 0:01:24]}  h6 {[%clk 0:01:49]} 13. Bh4 {[%clk 0:01:04]}  dxe3 {[%clk 0:01:24]} 14. fxe3 {[%clk 0:00:55]}  Qb6 {[%clk 0:01:09]} 15. c5 {[%clk 0:00:36]}  Qa5+ {[%clk 0:01:07]} 16. Qc3 {[%clk 0:00:29]}  Qxc3+ {[%clk 0:01:05]} 17. bxc3 {[%clk 0:00:30]}  Ne4 {[%clk 0:01:01]} 18. Bb5 {[%clk 0:00:25]}  f6 {[%clk 0:00:58]} 19. O-O {[%clk 0:00:18]}  Be6 {[%clk 0:00:52]} 20. c4 {[%clk 0:00:12]}  Nxc5 {[%clk 0:00:49]} 21. Rfd1 {[%clk 0:00:07]}  Rfd8 {[%clk 0:00:49]} 22. Be1 {[%clk 0:00:05]}  a6 {[%clk 0:00:31]} 23. Bxc6 {[%clk 0:00:04]}  bxc6 {[%clk 0:00:32]} 24. Ba5 {[%clk 0:00:03]}  Rdc8 {[%clk 0:00:31]} 25. Bb6 {[%clk 0:00:02]}  Nb3 {[%clk 0:00:28]} 26. c5 {[%clk 0:00:02]}  Nxa1 {[%clk 0:00:28]} 27. Rxa1 {[%clk 0:00:03]}  Re8 {[%clk 0:00:20]} 28. Rd1 {[%clk 0:00:03]}  Bd5 {[%clk 0:00:20]} 29. Nd2 {[%clk 0:00:02]}  Re7 {[%clk 0:00:20]} 30. e4 {[%clk 0:00:03]}  Be6 {[%clk 0:00:20]} 31. Nf3 {[%clk 0:00:02]}  Rd7 {[%clk 0:00:21]} 32. Rb1 {[%clk 0:00:02]}  Bc4 {[%clk 0:00:19]} 33. Kf2 {[%clk 0:00:02]}  Rb8 {[%clk 0:00:18]} 34. Rb4 {[%clk 0:00:01]}  Be6 {[%clk 0:00:18]} 35. Ke3 {[%clk 0:00:02]}  Rd1 {[%clk 0:00:16]} 36. a4 {[%clk 0:00:02]}  Rb7 {[%clk 0:00:15]} 37. a5 {[%clk 0:00:02]}  Rbd7 {[%clk 0:00:14]} 38. Kf2 {[%clk 0:00:01]}  R1d3 {[%clk 0:00:14]} 39. Kg3 {[%clk 0:00:02]}  Rb3 {[%clk 0:00:14]} 40. Ra4 {[%clk 0:00:02]}  Kf7 {[%clk 0:00:12]} 41. Rc4 {[%clk 0:00:01]}  Bxc4 {[%clk 0:00:11]} 0-1


[Site "https://www.chess.com"]

[Event "Titled Tuesday Blitz April 05 Late 2022"]
[White "Bowden, Karl"]
[Black "Cagara, Paulina"]
[WhiteFideId "400548"]
[BlackFideId "1124870"]
[WhiteElo "2345"]
[BlackElo "1780"]
[Result "1-0"]
[Round "07"]
[TimeControl "180+1"]
[Date "2022.04.06"]
[WhiteClock "0:00:19"]
[BlackClock "0:00:19"]

1. e4 {[%clk 0:02:59]}  c6 {[%clk 0:02:59]} 2. c4 {[%clk 0:02:58]}  d5 {[%clk 0:02:59]} 3. cxd5 {[%clk 0:02:59]}  cxd5 {[%clk 0:02:59]} 4. exd5 {[%clk 0:02:59]}  Nf6 {[%clk 0:02:59]} 5. Bb5+ {[%clk 0:02:59]}  Bd7 {[%clk 0:02:59]} 6. Bc4 {[%clk 0:02:59]}  g6 {[%clk 0:02:58]} 7. Nc3 {[%clk 0:02:59]}  Bg7 {[%clk 0:02:59]} 8. Nge2 {[%clk 0:03:00]}  O-O {[%clk 0:02:59]} 9. O-O {[%clk 0:02:59]}  a6 {[%clk 0:02:59]} 10. a4 {[%clk 0:02:59]}  Qc7 {[%clk 0:02:51]} 11. d3 {[%clk 0:02:54]}  Ng4 {[%clk 0:02:46]} 12. Bf4 {[%clk 0:02:27]}  Be5 {[%clk 0:02:44]} 13. g3 {[%clk 0:02:21]}  h5 {[%clk 0:02:35]} 14. Rc1 {[%clk 0:02:14]}  h4 {[%clk 0:02:21]} 15. Bxe5 {[%clk 0:01:48]}  Nxe5 {[%clk 0:02:19]} 16. Ne4 {[%clk 0:01:44]}  Nf3+ {[%clk 0:02:17]} 17. Kg2 {[%clk 0:01:40]}  Bg4 {[%clk 0:01:50]} 18. h3 {[%clk 0:01:36]}  Bxh3+ {[%clk 0:01:38]} 19. Kxh3 {[%clk 0:01:27]}  hxg3 {[%clk 0:01:36]} 20. N4xg3 {[%clk 0:01:16]}  Kg7 {[%clk 0:01:28]} 21. Rh1 {[%clk 0:01:12]}  Nd7 {[%clk 0:01:15]} 22. Kg2 {[%clk 0:01:01]}  Nde5 {[%clk 0:01:15]} 23. d4 {[%clk 0:00:38]}  Nxc4 {[%clk 0:01:14]} 24. Kxf3 {[%clk 0:00:37]}  b5 {[%clk 0:01:09]} 25. b3 {[%clk 0:00:36]}  Qd7 {[%clk 0:01:06]} 26. bxc4 {[%clk 0:00:33]}  bxc4 {[%clk 0:01:06]} 27. Nc3 {[%clk 0:00:32]}  Rab8 {[%clk 0:01:00]} 28. Qe2 {[%clk 0:00:27]}  Rb3 {[%clk 0:00:56]} 29. Kg2 {[%clk 0:00:27]}  Rfb8 {[%clk 0:00:36]} 30. Qe3 {[%clk 0:00:26]}  Qg4 {[%clk 0:00:27]} 31. Qh6+ {[%clk 0:00:25]}  Kf6 {[%clk 0:00:27]} 32. Ne4+ {[%clk 0:00:23]}  Qxe4+ {[%clk 0:00:21]} 33. Nxe4+ {[%clk 0:00:23]}  Kf5 {[%clk 0:00:22]} 34. Rh4 {[%clk 0:00:20]}  e5 {[%clk 0:00:19]} 35. Qg5# {[%clk 0:00:19]} 1-0


[Site "https://www.chess.com"]

[Event "Titled Tuesday Blitz April 05 Late 2022"]
[White "Buchenau, Frank"]
[Black "Rasulov, Vugar"]
[WhiteFideId "4604350"]
[BlackFideId "13402390"]
[WhiteElo "2193"]
[BlackElo "2560"]
[Result "0-1"]
[Round "07"]
[TimeControl "180+1"]
[Date "2022.04.05"]
[WhiteClock "0:00:05"]
[BlackClock "0:01:49"]

1. e4 {[%clk 0:02:59]}  e6 {[%clk 0:02:59]} 2. Nf3 {[%clk 0:02:58]}  d5 {[%clk 0:02:59]} 3. Nc3 {[%clk 0:02:58]}  Nf6 {[%clk 0:02:58]} 4. e5 {[%clk 0:02:58]}  Nfd7 {[%clk 0:02:58]} 5. d4 {[%clk 0:02:59]}  c5 {[%clk 0:02:58]} 6. dxc5 {[%clk 0:02:59]}  Nc6 {[%clk 0:02:58]} 7. Bf4 {[%clk 0:03:00]}  Bxc5 {[%clk 0:02:58]} 8. Bd3 {[%clk 0:03:00]}  f6 {[%clk 0:02:58]} 9. exf6 {[%clk 0:03:01]}  Nxf6 {[%clk 0:02:58]} 10. O-O {[%clk 0:03:00]}  O-O {[%clk 0:02:58]} 11. Qe2 {[%clk 0:03:00]}  Bd7 {[%clk 0:02:51]} 12. Ne5 {[%clk 0:03:00]}  Bd6 {[%clk 0:02:46]} 13. Nf7 {[%clk 0:02:55]}  Rxf7 {[%clk 0:02:45]} 14. Bxd6 {[%clk 0:02:55]}  Qb6 {[%clk 0:02:37]} 15. Ba3 {[%clk 0:02:18]}  e5 {[%clk 0:02:34]} 16. Qd2 {[%clk 0:01:55]}  e4 {[%clk 0:02:30]} 17. Be2 {[%clk 0:01:45]}  d4 {[%clk 0:02:30]} 18. Na4 {[%clk 0:01:27]}  Qa5 {[%clk 0:02:27]} 19. Qxa5 {[%clk 0:01:16]}  Nxa5 {[%clk 0:02:28]} 20. Nc5 {[%clk 0:01:13]}  b6 {[%clk 0:02:22]} 21. Nxd7 {[%clk 0:01:09]}  Rxd7 {[%clk 0:02:23]} 22. b4 {[%clk 0:00:59]}  Nc6 {[%clk 0:02:22]} 23. Bb5 {[%clk 0:00:52]}  Rc8 {[%clk 0:02:21]} 24. Rad1 {[%clk 0:00:45]}  Kf7 {[%clk 0:02:21]} 25. Rfe1 {[%clk 0:00:38]}  Kg6 {[%clk 0:02:20]} 26. Bb2 {[%clk 0:00:31]}  Rd5 {[%clk 0:02:14]} 27. Bc4 {[%clk 0:00:28]}  Rdd8 {[%clk 0:02:13]} 28. Be6 {[%clk 0:00:23]}  Rc7 {[%clk 0:02:05]} 29. b5 {[%clk 0:00:18]}  Nb4 {[%clk 0:02:05]} 30. Rxd4 {[%clk 0:00:16]}  Rxd4 {[%clk 0:02:03]} 31. Bxd4 {[%clk 0:00:17]}  Nxc2 {[%clk 0:02:03]} 32. Rc1 {[%clk 0:00:16]}  Re7 {[%clk 0:01:53]} 33. Bxf6 {[%clk 0:00:14]}  Kxf6 {[%clk 0:01:53]} 34. Rxc2 {[%clk 0:00:14]}  Rxe6 {[%clk 0:01:53]} 35. Kf1 {[%clk 0:00:14]}  Re5 {[%clk 0:01:49]} 36. a4 {[%clk 0:00:14]}  e3 {[%clk 0:01:43]} 37. fxe3 {[%clk 0:00:13]}  Rxe3 {[%clk 0:01:44]} 38. Rc7 {[%clk 0:00:13]}  Re7 {[%clk 0:01:45]} 39. Rxe7 {[%clk 0:00:13]}  Kxe7 {[%clk 0:01:46]} 40. Ke2 {[%clk 0:00:13]}  Kd6 {[%clk 0:01:46]} 41. Kd3 {[%clk 0:00:13]}  Kd5 {[%clk 0:01:47]} 42. Kc3 {[%clk 0:00:11]}  Kc5 {[%clk 0:01:47]} 43. Kb3 {[%clk 0:00:11]}  Kd4 {[%clk 0:01:48]} 44. Kb4 {[%clk 0:00:11]}  g5 {[%clk 0:01:47]} 45. a5 {[%clk 0:00:11]}  h5 {[%clk 0:01:46]} 46. axb6 {[%clk 0:00:09]}  axb6 {[%clk 0:01:47]} 47. Kb3 {[%clk 0:00:06]}  Kc5 {[%clk 0:01:48]} 48. Ka4 {[%clk 0:00:06]}  Kc4 {[%clk 0:01:48]} 49. Ka3 {[%clk 0:00:05]}  Kxb5 {[%clk 0:01:49]} 50. Kb3 {[%clk 0:00:05]}  Kc5 {[%clk 0:01:49]} 0-1


[Site "https://www.chess.com"]

[Event "Titled Tuesday Blitz April 05 Late 2022"]
[White "Curtis, John"]
[Black "Prohorov, Olexandr"]
[WhiteFideId "3200256"]
[BlackFideId "14105578"]
[WhiteElo "2203"]
[BlackElo "1993"]
[Result "1/2-1/2"]
[Round "07"]
[TimeControl "180+1"]
[Date "2022.04.06"]
[WhiteClock "0:01:36"]
[BlackClock "0:01:37"]

1. e4 {[%clk 0:03:00]}  c5 {[%clk 0:02:59]} 2. Nf3 {[%clk 0:03:00]}  e6 {[%clk 0:02:58]} 3. d4 {[%clk 0:02:59]}  cxd4 {[%clk 0:02:59]} 4. Nxd4 {[%clk 0:02:59]}  Qb6 {[%clk 0:03:00]} 5. Nb3 {[%clk 0:02:57]}  Nf6 {[%clk 0:03:00]} 6. e5 {[%clk 0:02:47]}  Ne4 {[%clk 0:02:29]} 7. Be3 {[%clk 0:02:45]}  Qc7 {[%clk 0:02:26]} 8. f3 {[%clk 0:02:38]}  Nc5 {[%clk 0:02:20]} 9. f4 {[%clk 0:02:20]}  d5 {[%clk 0:02:20]} 10. c3 {[%clk 0:02:08]}  Be7 {[%clk 0:02:14]} 11. Nxc5 {[%clk 0:02:07]}  Bxc5 {[%clk 0:02:13]} 12. Bxc5 {[%clk 0:02:07]}  Qxc5 {[%clk 0:02:14]} 13. Qd4 {[%clk 0:02:04]}  Qxd4 {[%clk 0:02:08]} 14. cxd4 {[%clk 0:02:04]}  Bd7 {[%clk 0:02:09]} 15. Kd2 {[%clk 0:01:54]}  Nc6 {[%clk 0:02:09]} 16. Ke3 {[%clk 0:01:53]}  f6 {[%clk 0:02:07]} 17. Nc3 {[%clk 0:01:44]}  Ne7 {[%clk 0:02:07]} 18. Bd3 {[%clk 0:01:43]}  O-O {[%clk 0:02:03]} 19. g3 {[%clk 0:01:41]}  Rac8 {[%clk 0:01:59]} 20. Rhc1 {[%clk 0:01:40]}  a6 {[%clk 0:01:54]} 21. Ne2 {[%clk 0:01:39]}  h6 {[%clk 0:01:40]} 22. Rxc8 {[%clk 0:01:38]}  Rxc8 {[%clk 0:01:38]} 23. Rc1 {[%clk 0:01:37]}  Rxc1 {[%clk 0:01:37]} 24. Nxc1 {[%clk 0:01:36]} 1/2-1/2


[Site "https://www.chess.com"]

[Event "Titled Tuesday Blitz April 05 Late 2022"]
[White "Derraugh, Geordie"]
[Black "Ambartsumova, Karina"]
[WhiteFideId "2603950"]
[BlackFideId "4166299"]
[WhiteElo "2116"]
[BlackElo "2262"]
[Result "0-1"]
[Round "07"]
[TimeControl "180+1"]
[Date "2022.04.06"]
[WhiteClock "0:00:15"]
[BlackClock "0:00:14"]

1. e4 {[%clk 0:03:00]}  e5 {[%clk 0:03:00]} 2. Nf3 {[%clk 0:03:00]}  Nc6 {[%clk 0:03:00]} 3. d4 {[%clk 0:03:00]}  exd4 {[%clk 0:02:59]} 4. Bc4 {[%clk 0:03:01]}  Nf6 {[%clk 0:02:53]} 5. e5 {[%clk 0:03:02]}  d5 {[%clk 0:02:50]} 6. Bb5 {[%clk 0:03:02]}  Ne4 {[%clk 0:02:50]} 7. Nxd4 {[%clk 0:03:02]}  Bd7 {[%clk 0:02:50]} 8. Bxc6 {[%clk 0:03:03]}  bxc6 {[%clk 0:02:50]} 9. O-O {[%clk 0:03:04]}  c5 {[%clk 0:02:40]} 10. Nb3 {[%clk 0:03:00]}  Bb5 {[%clk 0:02:13]} 11. Re1 {[%clk 0:02:49]}  Be7 {[%clk 0:02:11]} 12. e6 {[%clk 0:02:13]}  O-O {[%clk 0:02:05]} 13. f3 {[%clk 0:02:12]}  Nf6 {[%clk 0:02:00]} 14. exf7+ {[%clk 0:02:12]}  Rxf7 {[%clk 0:02:01]} 15. Nc3 {[%clk 0:02:09]}  Bc6 {[%clk 0:01:50]} 16. Na5 {[%clk 0:02:09]}  Be8 {[%clk 0:01:49]} 17. Bg5 {[%clk 0:02:08]}  d4 {[%clk 0:01:47]} 18. Ne2 {[%clk 0:02:02]}  Nd5 {[%clk 0:01:45]} 19. Bd2 {[%clk 0:01:53]}  Rb8 {[%clk 0:01:33]} 20. b3 {[%clk 0:01:44]}  Bg5 {[%clk 0:01:32]} 21. c3 {[%clk 0:01:24]}  Be3+ {[%clk 0:01:30]} 22. Kh1 {[%clk 0:01:21]}  Qg5 {[%clk 0:01:27]} 23. Nc4 {[%clk 0:01:13]}  Bxd2 {[%clk 0:00:59]} 24. Qxd2 {[%clk 0:01:09]}  Qxd2 {[%clk 0:00:52]} 25. Nxd2 {[%clk 0:01:09]}  d3 {[%clk 0:00:46]} 26. Nc1 {[%clk 0:01:03]}  Nxc3 {[%clk 0:00:46]} 27. Nxd3 {[%clk 0:01:00]}  Rd7 {[%clk 0:00:46]} 28. Re3 {[%clk 0:00:59]}  Nd5 {[%clk 0:00:36]} 29. Re5 {[%clk 0:00:54]}  Nf6 {[%clk 0:00:33]} 30. Nxc5 {[%clk 0:00:38]}  Rxd2 {[%clk 0:00:32]} 31. Ne6 {[%clk 0:00:37]}  c6 {[%clk 0:00:28]} 32. h3 {[%clk 0:00:36]}  Rb5 {[%clk 0:00:23]} 33. Re3 {[%clk 0:00:36]}  Rbd5 {[%clk 0:00:21]} 34. Nc7 {[%clk 0:00:36]}  Rd1+ {[%clk 0:00:21]} 35. Rxd1 {[%clk 0:00:36]}  Rxd1+ {[%clk 0:00:22]} 36. Kh2 {[%clk 0:00:36]}  Bd7 {[%clk 0:00:22]} 37. Rc3 {[%clk 0:00:29]}  Nd5 {[%clk 0:00:19]} 38. Nxd5 {[%clk 0:00:27]}  Rxd5 {[%clk 0:00:20]} 39. Kg3 {[%clk 0:00:27]}  Kf7 {[%clk 0:00:20]} 40. Kf4 {[%clk 0:00:27]}  Kf6 {[%clk 0:00:20]} 41. g4 {[%clk 0:00:27]}  Rd2 {[%clk 0:00:20]} 42. a4 {[%clk 0:00:27]}  Rd4+ {[%clk 0:00:20]} 43. Ke3 {[%clk 0:00:27]}  Rb4 {[%clk 0:00:20]} 44. f4 {[%clk 0:00:27]}  h6 {[%clk 0:00:20]} 45. f5 {[%clk 0:00:23]}  Kg5 {[%clk 0:00:18]} 46. Rd3 {[%clk 0:00:22]}  Be8 {[%clk 0:00:16]} 47. Kf2 {[%clk 0:00:17]}  Kf6 {[%clk 0:00:16]} 48. Kg3 {[%clk 0:00:16]}  Bf7 {[%clk 0:00:16]} 49. Rd6+ {[%clk 0:00:16]}  Ke7 {[%clk 0:00:16]} 50. Rxc6 {[%clk 0:00:16]}  Rxb3+ {[%clk 0:00:16]} 51. Kh4 {[%clk 0:00:16]}  Kd7 {[%clk 0:00:16]} 52. Ra6 {[%clk 0:00:16]}  Rb7 {[%clk 0:00:16]} 53. g5 {[%clk 0:00:16]}  hxg5+ {[%clk 0:00:16]} 54. Kxg5 {[%clk 0:00:16]}  Bc4 {[%clk 0:00:15]} 55. Rg6 {[%clk 0:00:15]}  Kc8 {[%clk 0:00:11]} 56. Rc6+ {[%clk 0:00:14]}  Rc7 {[%clk 0:00:11]} 57. Rxc7+ {[%clk 0:00:12]}  Kxc7 {[%clk 0:00:12]} 58. Kg6 {[%clk 0:00:13]}  Bd3 {[%clk 0:00:12]} 59. h4 {[%clk 0:00:10]}  a5 {[%clk 0:00:12]} 60. h5 {[%clk 0:00:11]}  Kd6 {[%clk 0:00:12]} 61. Kxg7 {[%clk 0:00:11]}  Bxf5 {[%clk 0:00:12]} 62. h6 {[%clk 0:00:10]}  Kc5 {[%clk 0:00:12]} 63. h7 {[%clk 0:00:10]}  Bxh7 {[%clk 0:00:12]} 64. Kxh7 {[%clk 0:00:11]}  Kb4 {[%clk 0:00:12]} 65. Kg6 {[%clk 0:00:12]}  Kxa4 {[%clk 0:00:13]} 66. Kf5 {[%clk 0:00:13]}  Kb3 {[%clk 0:00:13]} 67. Ke4 {[%clk 0:00:14]}  a4 {[%clk 0:00:14]} 68. Kd3 {[%clk 0:00:15]}  a3 {[%clk 0:00:14]} 0-1


[Site "https://www.chess.com"]